[Event "79th LOTTO Polish-ch 2022"]
[Site "Kruszwica"]
[Date "2022.05.14"]
[Round "4.1"]
[White "Gumularz, Szymon"]
[Black "Socko, Bartosz"]
[Result "1/2-1/2"]
[ECO "D20"]
[WhiteElo "2513"]
[BlackElo "2636"]
[Annotator "TA"]
[PlyCount "77"]
[EventDate "2022.05.10"]
[EventType "k.o."]
[EventCountry "POL"]
[SourceTitle "playchess.com"]
[Source "ChessBase"]
[SourceQuality "1"]
[TimeControl "40/5400+30:1800+30"]

{[%evp 12,77,22,7,36,28,22,14,17,6,16,22,26,26,28,22,22,26,23,28,24,17,29,20,40,35,33,28,29,29,32,33,33,23,39,45,51,50,45,41,64,38,72,83,80,85,81,87,75,81,89,22,31,8,8,8,8,0,0,0,0,0,0,0,0,0,10,0]} 1. d4 {[%emt 0:00:03]} d5 {[%emt 0:00:07]} 2. c4 {[%emt 0:00:07]} dxc4 {[%emt 0:00:05]} 3. e3 {[%emt 0:00:44]} Nf6 {[%emt 0:01:20]} 4. Bxc4 {[%emt 0:00:09]} e6 {[%emt 0:00:09]} 5. Nf3 {[%emt 0:00:05]} a6 {[%emt 0:00:11]} 6. O-O {[%emt 0:00:08]} c5 {[%emt 0:00:09]} 7. Nbd2 {[%emt 0:02:33]} cxd4 {[%emt 0:02:08] D27: Queen's Gambit Accepted: Classical main line: 7 e4!? and 7 a4.} 8. Nxd4 {[%emt 0:00:17]} Be7 {[%emt 0:01:02]} 9. b3 {[%emt 0:03:05]} b5 {[%emt 0:08:38]} 10. Be2 {[%emt 0:00:44]} Bb7 {[%emt 0:00:09]} 11. Bb2 {[%emt 0:23:22]} Nc6 {[%emt 0:10:21] [#]} 12. Bf3 $146 {[%emt 0:14:00]} ({Predecessor:} 12. Rc1 Nxd4 13. Bxd4 O-O 14. Nf3 Nd5 15. Qd2 Bf6 16. Ne5 Bxe5 17. Bxe5 Nf4 18. Qd1 {½-½ (49) Chu,B-Nguyen,T Ho Chi Minh City 2001}) 12... Qd7 {[%emt 0:06:59]} 13. Nxc6 {[%emt 0:00:51]} Bxc6 {[%emt 0:00:05]} 14. Rc1 {[%emt 0:02:33]} Bxf3 {[%emt 0:07:38]} 15. Nxf3 {[%emt 0:00:24] Threatens to win with Qxd7+.} Qxd1 {[%emt 0:02:22]} 16. Rfxd1 {[%emt 0:00:09]} O-O {[%emt 0:00:06]} 17. Ne5 {[%emt 0:11:19]} Rfd8 {[%emt 0:01:22]} (17... Rfc8 {seems wilder.} 18. Nc6 Bf8 19. Rc2 a5) 18. Rxd8+ {[%emt 0:04:42]} Bxd8 {[%emt 0:00:28]} 19. Kf1 {[%emt 0:01:02]} Kf8 {[%emt 0:01:41]} 20. Ke2 {[%emt 0:01:37]} Ke8 {[%emt 0:00:11]} 21. g4 {[%emt 0:05:13][%cal Bg2g4,Bg4g5][%mdl 32]} Nd5 {[%emt 0:04:00]} 22. Nd3 {[%emt 0:03:41]} Bf6 {[%emt 0:04:23]} 23. Bxf6 {[%emt 0:01:33]} Nxf6 $14 {[%emt 0:00:06][%mdl 4096] Endgame KRN-KRN} 24. g5 {[%emt 0:01:01]} Nd7 {[%emt 0:00:54]} 25. e4 {[%emt 0:06:32]} Kd8 {[%emt 0:06:19]} 26. Ke3 {[%emt 0:04:16] White is more active.} Rc8 {[%emt 0:25:47]} 27. Rxc8+ {[%emt 0:00:49]} Kxc8 $16 {[%emt 0:02:43] [#] KN-KN} 28. Kd4 $1 {[%emt 0:01:04]} Nb8 {[%emt 0:00:49]} 29. Ne5 {[%emt 0:07:41]} f6 {[%emt 0:00:06]} 30. gxf6 {[%emt 0:00:07]} gxf6 {[%emt 0:00:04]} 31. Nd3 {[%emt 0:01:04]} ({White should play} 31. Ng4 $16) 31... Kc7 $1 $11 {[%emt 0:01:53]} 32. Nc5 {[%emt 0:01:07]} Kd6 {[%emt 0:00:51] The position is equal.} 33. Nb7+ {[%emt 0:01:30]} Kc6 {[%emt 0:03:18]} 34. Nd8+ {[%emt 0:00:26]} Kd7 {[%emt 0:00:08]} 35. Nf7 {[%emt 0:00:53]} Ke7 {[%emt 0:00:47]} 36. Nh6 {[%emt 0:00:04]} Kd6 {[%emt 0:00:09]} 37. Nf7+ {[%emt 0:02:04]} Ke7 {[%emt 0:00:18]} 38. Nh6 {[%emt 0:00:02]} Kd6 {[%emt 0:00:05]} 39. Nf7+ {[%emt 0:02:15] Weighted Error Value: White=0.06 (flawless) /Black=0.04 (flawless)} 1/2-1/2

[Event "79th LOTTO Polish-ch 2022"]
[Site "Kruszwica"]
[Date "2022.05.14"]
[Round "4.2"]
[White "Wojtaszek, Radoslaw"]
[Black "Moranda, Wojciech"]
[Result "1/2-1/2"]
[ECO "D30"]
[WhiteElo "2696"]
[BlackElo "2630"]
[Annotator "TA"]
[PlyCount "94"]
[EventDate "2022.05.10"]
[EventType "k.o."]
[EventCountry "POL"]
[SourceTitle "playchess.com"]
[Source "ChessBase"]
[SourceQuality "1"]
[TimeControl "900+10"]

{[%evp 10,94,2,-28,-19,-32,-48,-33,-39,-47,-35,-54,-50,-77,-69,-85,-46,-204,-39,-47,-41,-45,-15,-31,-6,-6,0,-19,16,-7,-3,-29,-15,-6,0,-51,-33,-18,-20,-16,-14,-15,-16,-43,-36,-107,-107,-108,-103,-102,-77,-122,-102,-122,-86,-180,-179,-424,-195,-202,-195,-219,-214,-193,-164,-179,-172,-193,-154,-196,-196,-215,-216,-212,-207,-267,-267,-256,-265,-257,-171,-171,-168,-168,-152,-152,-145]} 1. c4 {[%emt 0:10:15]} Nf6 {[%emt 0:10:15]} 2. Nf3 {[%emt 0:00:08]} e6 {[%emt 0:00:08]} 3. d4 {[%emt 0:00:09]} d5 {[%emt 0:00:09]} 4. Bg5 {[%emt 0:00:08]} dxc4 {[%emt 0:00:08]} 5. Qa4+ {[%emt 0:00:08]} Nbd7 {[%emt 0:00:09]} 6. Qxc4 {[%emt 0:00:11]} c5 {[%emt 0:00:24] D30: Queen's Gambit Declined: Systems without Nc3.} 7. Nbd2 {[%emt 0:00:17]} a6 {[%emt 0:00:13]} 8. e3 {[%emt 0:01:04]} b5 {[%emt 0:00:09] Black is slightly better.} 9. Qc2 {[%emt 0:00:35]} Bb7 {[%emt 0:00:08]} 10. dxc5 {[%emt 0:00:09]} Bxc5 {[%emt 0:00:11]} 11. Bd3 {[%emt 0:00:15]} Rc8 {[%emt 0:00:12] aiming for ...Bxf3.} 12. Qb1 {[%emt 0:00:09] [#]} h6 $146 {[%emt 0:00:09]} (12... Bb4 {is interesting.} 13. Ke2 Nc5 14. Rc1 Ke7) ({Predecessor:} 12... Be7 13. O-O Nc5 14. Bc2 h6 15. Bh4 O-O 16. Rd1 Nd5 17. Bxe7 Qxe7 18. Ne4 Nb4 19. Nxc5 Nxc2 20. Qxc2 Bxf3 21. gxf3 Rxc5 {0-1 (41) Nikcevic,N (2435)-Blagojevic,D (2499) Podgorica 2019}) 13. Bh4 {[%emt 0:00:08]} (13. Bxf6 $15 Nxf6 14. O-O) 13... O-O $2 {[%emt 0:00:11]} ({Black should try} 13... g5 $1 $19 {[%cal Rg5h4]} 14. Bg3 g4) 14. O-O {[%emt 0:00:09][%cal Od3h7]} Qb6 {[%emt 0:00:18]} 15. a4 {[%emt 0:00:32]} Rfd8 {[%emt 0:00:09]} 16. Rd1 {[%emt 0:00:27]} Be7 {[%emt 0:00:39]} 17. axb5 {[%emt 0:00:11]} axb5 {[%emt 0:00:09]} 18. Nd4 {[%emt 0:00:15]} Nf8 {[%emt 0:01:20][%cal Bd7f8,Bf8g6,Bg6e5][%mdl 32]} 19. Bf1 {[%emt 0:00:13]} Rd5 {[%emt 0:00:25]} 20. N2b3 {[%emt 0:00:21]} Ng6 {[%emt 0:00:16]} 21. Bg3 {[%emt 0:00:09]} Nh5 {[%emt 0:00:13]} 22. Qa2 {[%emt 0:00:44]} (22. Na5 $11) 22... Nxg3 {[%emt 0:00:15]} 23. hxg3 {[%emt 0:00:09]} Ra8 {[%emt 0:00:13] Prevents Qa5.} 24. Qb1 {[%emt 0:00:07]} Rad8 $36 {[%emt 0:00:19][%mdl 2048] Threatens to win with ...e5. Black has the initiative.} 25. Rc1 {[%emt 0:00:08]} Ne5 {[%emt 0:00:16][%cal Oe5c4]} 26. Qc2 {[%emt 0:00:15]} Rc8 {[%emt 0:00:17] Prevents Qc7.} 27. Qxc8+ {[%emt 0:00:40] Black keeps a firm grip on the game.} (27. Qd1 $1 $15) 27... Bxc8 $17 {[%emt 0:00:08]} 28. Rxc8+ {[%emt 0:00:08]} Rd8 {[%emt 0:00:40]} 29. Rxd8+ {[%emt 0:00:10]} Bxd8 {[%emt 0:00:15]} 30. Bxb5 Qd6 {[%emt 0:00:21]} 31. Ra6 {[%emt 0:00:49]} Qb4 {[%emt 0:00:09] Strongly threatening ...Qe1+.} 32. Ra1 {[%emt 0:00:31] Against Qe1+} ({Don't go for} 32. Ra8 $2 Qe1+ 33. Bf1 Ng4 $1 34. Rxd8+ Kh7 $19) (32. Kf1 $17 {might work better.}) 32... Bb6 $19 {[%emt 0:00:11]} 33. Bf1 $2 {[%emt 0:00:20]} (33. Rc1) 33... Bxd4 {[%emt 0:00:11]} (33... Ng4 $142 34. Nc1 Bxd4 35. exd4 {[#]} Nxf2 $1 {[%mdl 512]} 36. Ra8+ Kh7) 34. Nxd4 {[%emt 0:00:11]} Qxb2 {[%emt 0:00:08]} 35. Rd1 {[%emt 0:00:08]} g6 {[%emt 0:00:13]} 36. Be2 {[%emt 0:00:10]} Qc3 {[%emt 0:00:20]} 37. Kf1 {[%emt 0:00:12]} Kg7 {[%emt 0:00:08]} 38. Nf3 {[%emt 0:00:12]} Nc6 {[%emt 0:00:15]} 39. Nd4 {[%emt 0:00:09]} Nb4 {[%emt 0:00:17]} 40. Nf3 {[%emt 0:00:12]} Nd5 {[%emt 0:00:18]} 41. Nd4 {[%emt 0:00:18]} Qb2 {[%emt 0:00:09]} 42. Bf3 {[%emt 0:00:25]} Nc3 {[%emt 0:00:09]} 43. Re1 {[%emt 0:00:08]} e5 {[%emt 0:00:10][%cal Be6e5,Be5e4][%mdl 32]} 44. Ne2 {[%emt 0:00:11]} e4 {[%emt 0:00:24]} 45. Bg4 {[%emt 0:00:08] Black is clearly better.} f5 {[%emt 0:00:13]} 46. Nxc3 {[%emt 0:00:10]} Qxc3 {[%emt 0:00:17]} 47. Be2 {[%emt 0:00:08]} h5 {Inhibits g4.  Weighted Error Value: White=0.32/Black=0.26 (precise)} 1/2-1/2

[Event "79th LOTTO Polish-ch 2022"]
[Site "Kruszwica"]
[Date "2022.05.14"]
[Round "4.2"]
[White "Piorun, Kacper"]
[Black "Tomczak, Jacek"]
[Result "1/2-1/2"]
[ECO "B51"]
[WhiteElo "2635"]
[BlackElo "2584"]
[Annotator "TA"]
[PlyCount "48"]
[EventDate "2022.05.10"]
[EventType "k.o."]
[EventCountry "POL"]
[SourceTitle "playchess.com"]
[Source "ChessBase"]
[SourceQuality "1"]
[TimeControl "900+10"]

{[%evp 9,48,3,12,0,0,0,0,0,0,0,0,25,39,25,41,-22,-17,-15,-6,-21,-9,-22,-18,-35,-8,-16,-18,-26,-16,-66,-26,-24,-25,-16,0,0,0,-11,0,0,0]} 1. e4 {[%emt 0:00:01]} c5 {[%emt 0:00:01]} 2. Nf3 {[%emt 0:00:02]} d6 {[%emt 0:00:01]} 3. Bb5+ {[%emt 0:00:01]} Nd7 {[%emt 0:00:02]} 4. d4 {[%emt 0:00:01]} cxd4 {[%emt 0:00:05]} 5. Qxd4 {[%emt 0:00:02]} a6 {[%emt 0:00:02]} 6. Be2 {[%emt 0:00:01] B51: Sicilian: Moscow Variation (3 Bb5+) without 3...Bd7.} Ngf6 {[%emt 0:00:27]} 7. O-O {[%emt 0:00:06]} g6 {[%emt 0:00:10]} 8. Nc3 {[%emt 0:00:39]} Bg7 {[%emt 0:00:03]} 9. Rd1 {[%emt 0:00:01]} O-O {[%emt 0:00:19]} 10. e5 {[%emt 0:00:20]} dxe5 {[%emt 0:03:44]} 11. Nxe5 {[%emt 0:05:49]} Qc7 {[%emt 0:00:02] [#]} 12. Nxd7 $146 {[%emt 0:00:24]} (12. Bf4 $14) ({Predecessor:} 12. Bf4 Nh5 13. Bxh5 Bxe5 14. Nd5 Qd6 15. Bxe5 Nxe5 16. Qe3 Rb8 17. f4 Nc6 18. Bf3 {1-0 (50) Artemiev,V (2682)-Can,E (2589) Minsk 2017}) 12... Bxd7 $11 {[%emt 0:00:13]} 13. Bf4 {[%emt 0:00:15]} Qc8 {[%emt 0:01:32]} 14. Qb4 {[%emt 0:01:12]} Bc6 {[%emt 0:00:29]} 15. Qxe7 {[%emt 0:01:48]} Re8 {[%emt 0:00:59]} 16. Qd6 {[%emt 0:00:01]} Qf5 {[%emt 0:01:55][%cal Oe8e2][%mdl 1024] White must now prevent ...Rxe2! Black has compensation.} 17. Bd3 {[%emt 0:00:47]} Qg4 {[%emt 0:00:14][%csl Gc6][%cal Rg4g2] [#]} 18. Bg3 {[%emt 0:01:02]} Nh5 {[%emt 0:00:14] And now ...Rad8 would win.} 19. Re1 {[%emt 0:01:15]} ({Of course not} 19. h3 Qg5 20. h4 Qa5 $17) (19. Bf1 $11) 19... Red8 {[%emt 0:01:48]} 20. Qe7 {[%emt 0:00:45]} Nxg3 {[%emt 0:03:18]} 21. hxg3 {[%emt 0:00:03]} Re8 {[%emt 0:00:06] The position is equal.} 22. Qd6 {[%emt 0:00:11]} Red8 {[%emt 0:00:10]} 23. Qe7 {[%emt 0:00:09]} Re8 {[%emt 0:00:02]} 24. Qd6 {[%emt 0:00:02]} Red8 {[%emt 0:00:02] Weighted Error Value: White=0.14 (very precise) /Black=0.07 (flawless)} 1/2-1/2

[Event "79th LOTTO Polish-ch 2022"]
[Site "Kruszwica"]
[Date "2022.05.14"]
[Round "4.2"]
[White "Moranda, Wojciech"]
[Black "Wojtaszek, Radoslaw"]
[Result "0-1"]
[ECO "C84"]
[WhiteElo "2630"]
[BlackElo "2696"]
[Annotator "TA"]
[PlyCount "99"]
[EventDate "2022.05.10"]
[EventType "k.o."]
[EventCountry "POL"]
[SourceTitle "playchess.com"]
[Source "ChessBase"]
[SourceQuality "1"]
[TimeControl "900+10"]

{[%evp 16,99,7,0,14,14,15,12,4,0,5,10,13,2,13,0,4,-10,15,18,21,32,34,8,29,28,91,89,96,79,77,86,85,75,89,91,75,36,26,0,20,26,36,0,21,12,4,-8,-9,-8,-8,-206,-184,-231,-217,-517,-208,-201,-197,-268,-234,-217,-234,-224,-233,-250,-242,-463,-451,-495,-595,-582,-570,-637,-609,-728,-702,-631,-360,-377,-379,-366,-366,-361,-346,-846]} 1. e4 {[%emt 0:10:15] Havasi,G} e5 {[%emt 0:10:15]} 2. Nf3 {[%emt 0:00:08]} Nc6 {[%emt 0:00:08]} 3. Bb5 {[%emt 0:00:08][%cal Bf1b5,Bb5a4,Ba4b3,Bb3a2][%mdl 32]} a6 {[%emt 0:00:07]} 4. Ba4 {[%emt 0:00:08]} Nf6 {[%emt 0:00:09]} 5. O-O {[%emt 0:00:08]} Be7 {[%emt 0:00:07]} 6. d3 {[%emt 0:00:08]} b5 {[%emt 0:00:11]} 7. Bb3 {[%emt 0:00:08]} d6 {[%emt 0:00:07]} 8. a3 {[%emt 0:00:07]} O-O {[%emt 0:00:10]} 9. Nc3 {[%emt 0:00:08]} Rb8 {[%emt 0:00:08] C77: Ruy Lopez: 3...a6 4 Ba4 Nf6, unusual lines.} 10. Be3 {[%emt 0:00:08]} Na5 {[%emt 0:00:11]} 11. Ba2 {[%emt 0:00:09]} c5 {[%emt 0:00:10] The position is equal.} 12. Nd5 {[%emt 0:00:07] [#]} Nxd5 $5 $146 {[%emt 0:00:10][%mdl 8] New and interesting.} ({Predecessor:} 12... c4 13. Nxe7+ Qxe7 14. Qd2 Nc6 15. h3 Be6 16. b4 Rfc8 17. c3 cxd3 18. Qxd3 Bxa2 19. Rxa2 {0-1 (41) Leko,P (2708)-Carlsen,M (2850) Reykjavik 2015 CBM 170 [Havasi,G]}) 13. Bxd5 {[%emt 0:00:09]} Bb7 {[%emt 0:00:08]} 14. b4 {[%emt 0:00:08]} Bxd5 {[%emt 0:00:27]} 15. exd5 {[%emt 0:00:08]} Nb7 {[%emt 0:00:08]} 16. g4 {[%emt 0:00:08]} Rc8 {[%emt 0:00:20]} 17. Nd2 {[%emt 0:00:19]} Qd7 {[%emt 0:00:14]} 18. Ne4 {[%emt 0:00:14]} c4 {[%emt 0:00:22]} 19. Kh1 {[%emt 0:00:31]} Nd8 {[%emt 0:00:23]} 20. Rg1 {[%emt 0:00:42][%cal Bf1g1,Bg1g4,Bg4g6][%mdl 32]} f5 {[%emt 0:00:30]} (20... f6 $11) 21. gxf5 $16 {[%emt 0:00:09]} Qxf5 {[%emt 0:00:08]} 22. Qg4 {[%emt 0:00:37]} Qxg4 {[%emt 0:00:24]} 23. Rxg4 {[%emt 0:00:08]} Nf7 {[%emt 0:00:32]} 24. a4 {[%emt 0:00:29]} Rc7 {[%emt 0:00:08]} 25. axb5 {[%emt 0:00:24]} axb5 {[%emt 0:00:08]} 26. h4 {[%emt 0:00:25]} h5 {[%emt 0:01:07]} 27. Rg6 {[%emt 0:00:10] [#] Black must now prevent Rag1.} (27. Rg3 $5 {[%cal Ra1g1]}) 27... Kh7 {[%emt 0:00:08]} (27... Bxh4 28. Rag1 $16) 28. Rag1 {[%emt 0:00:08]} Rg8 {[%emt 0:00:08]} 29. Re6 {[%emt 0:00:43]} Nd8 {[%emt 0:00:13] [#]} 30. Rxe7 {[%emt 0:00:23]} Rxe7 {[%emt 0:00:08]} 31. Nxd6 {[%emt 0:00:12]} cxd3 {[%emt 0:00:09] Strongly threatening ...Rd7.} 32. cxd3 Rd7 33. Ne4 {[%emt 0:00:40] Loses the game.} (33. Bc5 $11) 33... Rxd5 $19 {[%emt 0:00:23]} 34. Rg5 {[%emt 0:00:08]} (34. Rc1 $142) 34... Ne6 {[%emt 0:00:18]} ({And not} 34... Rxd3 35. Rxh5+ Kg6 36. Rg5+ Kh7 37. Rh5+ Kg6 38. Rg5+ Kf7 39. Rxe5 $11) 35. Rxh5+ {[%emt 0:00:29]} Kg6 {[%emt 0:00:16]} 36. Ng3 {[%emt 0:00:11]} Rf8 {[%emt 0:00:37]} (36... Rxd3 37. Rxe5 Nc7 38. Ne2 $17) 37. Kg2 {[%emt 0:00:08]} (37. Kh2 $142) 37... Nf4+ {[%emt 0:00:28]} ({Weaker is} 37... Rxd3 38. Rxe5 Nf4+ 39. Kg1 $17) 38. Bxf4 {[%emt 0:00:10]} Rxf4 {[%emt 0:00:08][%mdl 4096] Endgame KRR-KRN} 39. Rg5+ {[%emt 0:00:09]} Kf7 {[%emt 0:00:09]} 40. h5 {[%emt 0:00:36]} Rxb4 {[%emt 0:00:12]} 41. Rg6 $2 {[%emt 0:00:24]} (41. Rf5+ {keeps fighting.} Ke6 42. Rg5) 41... Rxd3 {[%emt 0:00:24]} 42. Nf5 {[%emt 0:00:40]} Rf4 {[%emt 0:00:19]} 43. Nd6+ {[%emt 0:00:08]} Kf8 {[%emt 0:00:20] ...b4 is the strong threat.} 44. Re6 {[%emt 0:00:10][%csl Gd6][%cal Re6e8]} Kg8 {[%emt 0:00:09] Hoping for ...b4.} ({Not} 44... Rg4+ $2 45. Kf1 Kg8 46. Re8+ Kh7 47. Nf7 $17) 45. Nxb5 {[%emt 0:00:14]} Rd2 {[%emt 0:00:22]} 46. Rxe5 {[%emt 0:00:26]} Kh7 {[%emt 0:00:10]} 47. Kg3 {[%emt 0:00:16]} Rdxf2 {[%emt 0:00:15]} 48. Nd4 {[%emt 0:00:08] Prevents R2f3+.} Rf1 {[%emt 0:00:16]} 49. Rd5 {[%emt 0:00:24]} Rf6 {[%emt 0:00:14] And now ...Rg1+ would win.} 50. Kg4 $2 {Weighted Error Value: White=0.28 (precise) /Black=0.13 (very precise)} (50. Re5) 0-1

[Event "79th LOTTO Polish-ch 2022"]
[Site "Kruszwica"]
[Date "2022.05.14"]
[Round "4.2"]
[White "Tomczak, Jacek"]
[Black "Piorun, Kacper"]
[Result "1/2-1/2"]
[ECO "C11"]
[WhiteElo "2584"]
[BlackElo "2635"]
[Annotator "TA"]
[PlyCount "189"]
[EventDate "2022.05.10"]
[EventType "k.o."]
[EventCountry "POL"]
[SourceTitle "playchess.com"]
[Source "ChessBase"]
[SourceQuality "1"]
[TimeControl "900+10"]

{[%evp 16,189,8,9,8,0,8,6,2,8,7,-6,0,0,0,-6,0,0,8,5,14,0,36,-48,0,-77,0,0,0,8,0,39,66,19,16,18,15,0,0,0,0,0,36,0,0,0,38,0,0,0,0,0,0,0,0,0,0,0,0,0,16,0,0,0,0,0,0,0,0,0,0,0,0,-294,20,31,33,0,0,0,0,0,0,-74,0,-8,-8,-14,-14,-25,-22,-117,0,0,0,0,0,0,0,0,0,0,0,0,0,0,0,0,0,0,0,0,0,0,0,0,0,0,0,0,0,0,0,0,0,0,0,-43,-43,-43,0,-80,0,0,0,0,0,-44,0,-51,0,0,0,0,0,0,0,0,0,0,0,0,0,0,0,0,0,0,0,0,0,0,0,0,0,0,0,0,0,-85,0,0,0,0,0,0]} 1. e4 {[%emt 0:10:15]} e6 {[%emt 0:10:14]} 2. d4 {[%emt 0:00:08]} d5 {[%emt 0:00:08]} 3. Nc3 {[%emt 0:00:08]} Nf6 {[%emt 0:00:08]} 4. e5 {[%emt 0:00:08]} Nfd7 {[%emt 0:00:08]} 5. f4 {[%emt 0:00:08]} c5 {[%emt 0:00:08]} 6. Nf3 {[%emt 0:00:08]} Nc6 {[%emt 0:00:08]} 7. Be3 {[%emt 0:00:08]} a6 {[%emt 0:00:07]} 8. Be2 {[%emt 0:00:08]} Be7 {[%emt 0:00:09]} 9. O-O {[%emt 0:00:09]} O-O {[%emt 0:00:09]} 10. Kh1 {[%emt 0:00:10]} b6 {[%emt 0:00:29]} 11. Qe1 {[%emt 0:00:13]} Bb7 {[%emt 0:00:16]} 12. Qg3 {[%emt 0:00:08]} cxd4 {[%emt 0:00:14]} 13. Nxd4 {[%emt 0:00:09]} Nxd4 {[%emt 0:00:26]} 14. Bxd4 {[%emt 0:00:09]} Bc5 {[%emt 0:00:09]} 15. Rad1 {[%emt 0:00:14]} Bxd4 {[%emt 0:00:22]} 16. Rxd4 {[%emt 0:00:08]} f6 {[%emt 0:00:08]} 17. exf6 {[%emt 0:01:20]} Qxf6 {[%emt 0:00:21]} 18. Rdd1 {[%emt 0:00:08]} Nc5 {[%emt 0:00:13]} 19. Bd3 {[%emt 0:00:27]} (19. b4 $14 Ne4 20. Nxe4 dxe4 21. c4) 19... Rf7 {[%emt 0:00:25]} (19... Rac8 $15) 20. b3 {[%emt 0:00:22]} (20. Be2 $11 {remains equal.}) 20... g6 {[%emt 0:00:20]} (20... Raf8 $17) 21. Ne2 {[%emt 0:00:09]} e5 {[%emt 0:00:39]} 22. fxe5 {[%emt 0:00:13]} Qxf1+ {[%emt 0:00:08]} 23. Rxf1 {[%emt 0:00:08]} Rxf1+ {[%emt 0:00:09]} 24. Ng1 {[%emt 0:00:08]} Ne4 {[%emt 0:00:08]} 25. Bxe4 {[%emt 0:00:12]} dxe4 {[%emt 0:00:08]} 26. h3 {[%emt 0:00:17]} Re8 {[%emt 0:00:27]} 27. Kh2 {[%emt 0:00:09]} Rf5 {[%emt 0:00:11]} 28. e6 {[%emt 0:00:11]} Bc8 {[%emt 0:01:03]} 29. Ne2 {[%emt 0:00:08]} Bxe6 {[%emt 0:00:20]} 30. Nd4 {[%emt 0:00:09]} Rf7 {[%emt 0:00:39]} 31. Qe3 {[%emt 0:00:10]} (31. c4 $5 {[%cal Rd4c2]}) 31... Bd7 {[%emt 0:00:14]} 32. Ne2 {[%emt 0:00:08]} b5 {[%emt 0:00:11]} 33. Nc3 {[%emt 0:00:10]} Bc6 {[%emt 0:00:13]} 34. Ne2 {[%emt 0:00:09]} Bb7 {[%emt 0:00:09]} 35. Nd4 {[%emt 0:00:12]} Rd7 {[%emt 0:00:12]} 36. c4 {[%emt 0:00:11]} bxc4 {[%emt 0:00:31]} 37. bxc4 {[%emt 0:00:09]} Rc7 {[%emt 0:00:11]} 38. Qb3 {[%emt 0:00:22]} e3 {[%emt 0:00:22]} 39. c5+ $1 {[%emt 0:00:07]} Rf7 {[%emt 0:00:22]} 40. Qc4 {[%emt 0:00:08]} Bc8 {[%emt 0:00:24]} 41. c6 {[%emt 0:00:11]} Kf8 {[%emt 0:00:08]} 42. c7 {[%emt 0:00:10]} Ree7 {[%emt 0:00:19]} 43. Qc5 {[%emt 0:00:09]} Kg8 {[%emt 0:00:15]} 44. Nc6 $2 {[%emt 0:00:11][%mdl 8192]} (44. Qd6 $11 Rxc7 45. Nf3) 44... Rxc7 $2 {[%emt 0:00:10]} ({Black should try} 44... Re8 $19 {And now ...e2 would win.} 45. Ne5 e2) 45. Qxe3 $11 {[%emt 0:00:10]} Bb7 {[%emt 0:00:12]} 46. Ne5 {[%emt 0:00:10]} Rc2 {[%emt 0:00:14]} 47. h4 $1 {[%emt 0:01:13]} Rxg2+ {[%emt 0:00:08]} 48. Kh3 {[%emt 0:00:08]} Rgf2 {[%emt 0:00:13]} (48... Rxa2 $2 49. Nxf7 Bc8+ 50. Kg3 Kxf7 51. h5 $18) 49. Qd4 {[%emt 0:00:19]} (49. Qb6 $11) 49... R2f4 {[%emt 0:00:13]} (49... Rxa2 50. Nxf7 Bc8+ 51. Kg3 Kxf7 52. h5 Ra3+ 53. Kf2 $16) (49... R7f4 $17 50. Qd7 Bg2+ 51. Kg3 Rf8) 50. Qd8+ {[%emt 0:00:18]} Rf8 {[%emt 0:00:10]} 51. Qb6 $1 {[%emt 0:00:08]} Bc8+ {[%emt 0:00:10]} 52. Kg3 {[%emt 0:00:08]} R4f6 {[%emt 0:00:07]} 53. Qb3+ {[%emt 0:00:09]} (53. Qa5 $11 {keeps the balance.}) 53... Kh8 {[%emt 0:00:11]} (53... Be6 $17 54. Qc2 g5) 54. Qc3 {[%emt 0:00:09]} Kg8 {[%emt 0:00:08]} 55. Qc4+ {[%emt 0:00:09]} Kh8 {[%emt 0:00:08]} 56. Qd4 {[%emt 0:00:12]} Kg8 {[%emt 0:00:10]} 57. a4 {[%emt 0:00:08]} Bf5 {[%emt 0:00:16]} 58. a5 {[%emt 0:00:11]} Bc8 {[%emt 0:00:07]} 59. Qc5 {[%emt 0:00:28]} Kg7 {[%emt 0:00:12]} 60. Qd5 {[%emt 0:00:23]} Kh8 {[%emt 0:00:10]} 61. Qc4 {[%emt 0:00:24]} Kg7 {[%emt 0:00:08]} 62. Qd4 {[%emt 0:00:08]} Kg8 {[%emt 0:00:08]} 63. Qb2 {[%emt 0:00:12]} Bf5 {[%emt 0:00:12]} 64. Qb3+ {[%emt 0:00:12]} Be6 {[%emt 0:00:09]} 65. Qc3 {[%emt 0:00:12]} Bc8 {[%emt 0:00:08]} 66. Qd4 {[%emt 0:00:08]} Be6 {[%emt 0:00:12]} 67. Qd1 {[%emt 0:00:19]} Bc8 {[%emt 0:00:08]} 68. Qd3 {[%emt 0:00:21]} Kh8 {[%emt 0:00:11]} 69. Qc4 {[%emt 0:00:12]} Kg7 {[%emt 0:00:10]} 70. Qd4 {[%emt 0:00:40]} Kg8 {[%emt 0:00:08]} 71. Nd3 {[%emt 0:00:35]} Rf3+ {[%emt 0:00:12]} 72. Kh2 {[%emt 0:00:09]} R3f6 {[%emt 0:00:11]} 73. Kg2 {[%emt 0:00:15]} (73. Ne5 $11) 73... Bb7+ {[%emt 0:00:09]} (73... Be6 $17 74. Ne5 Rf4) 74. Kh2 $11 {[%emt 0:00:11]} Bc8 {[%emt 0:00:10]} 75. Qc4+ {[%emt 0:00:10]} Kg7 {[%emt 0:00:11]} 76. Qc3 {[%emt 0:00:09]} Kg8 {[%emt 0:00:09]} 77. Qd4 {[%emt 0:00:08]} (77. Qc4+ $11 Kh8 78. Kg3) 77... Bb7 {[%emt 0:00:14]} (77... Be6 $15) 78. Qc4+ $11 {[%emt 0:00:16]} Kh8 {[%emt 0:00:09]} 79. Qc3 {[%emt 0:00:07]} Bc8 {[%emt 0:00:10]} 80. Ne5 {[%emt 0:00:10]} Kg8 {[%emt 0:00:09]} (80... Rf2+ 81. Kg3 R2f6 82. Qc5 $15) 81. Qd4 {[%emt 0:00:08]} Bf5 {[%emt 0:00:13]} 82. Kg3 {[%emt 0:00:08]} Bc8 {[%emt 0:00:08]} ({Reject} 82... Be6 $6 83. Qd3 $17) 83. Qd1 {[%emt 0:00:11]} Kh8 {[%emt 0:00:10]} 84. Qe2 {[%emt 0:00:09]} Kg8 {[%emt 0:00:10]} 85. Qc4+ {[%emt 0:00:16]} Kh8 {[%emt 0:00:09]} 86. Qc7 {[%emt 0:00:08]} Kg8 {[%emt 0:00:10]} 87. Qe7 {[%emt 0:00:09]} Re6 {[%emt 0:00:11]} 88. Qc5 {[%emt 0:00:09]} Ref6 {[%emt 0:00:10]} 89. Qc4+ {[%emt 0:00:10]} Kh8 {[%emt 0:00:09]} 90. Qd4 {[%emt 0:00:08]} Kg8 {[%emt 0:00:09]} 91. Nd3 {[%emt 0:00:12]} Rf3+ {[%emt 0:00:09]} (91... h6 $11) 92. Kh2 $17 {[%emt 0:00:08] [#]} R3f6 {[%emt 0:00:08]} (92... Be6 $1 $17 93. Ne5 Rf2+ 94. Kg3 R2f5) 93. Ne5 {[%emt 0:00:10]} Rf2+ {[%emt 0:00:11]} 94. Kg3 {[%emt 0:00:08]} R2f6 {[%emt 0:00:11]} 95. Qc4+ {[%emt 0:00:16]} 1/2-1/2